bitfinex/quotes_SOLUSD_20230110
["timestamp","ask_amount","ask_price","bid_price","bid_amount"]
[1673328738644,20.0,16.038,16.022,31.29257692]
[1673328739069,20.0,16.038,16.023,11.29257692]
[1673328741591,135.7605,16.038,16.023,11.29257692]
[1673328742963,135.7605,16.038,16.024,20.0]
[1673328742964,20.0,16.038,16.024,20.0]
[1673328743284,20.0,16.038,16.024,31.29257692]
[1673328743683,31.29257692,16.024,15.987,103.1983779]
[1673328743891,132.75,16.02,15.992,113.1842]
[1673328744112,66.83,16.019,15.992,113.1842]
[1673328744321,66.83,16.019,15.998,20.0]
[1673328744538,85.83061681,16.019,15.993,46.91]
[1673328744748,20.0,16.017,15.994,20.0]
[1673328744941,63.84,16.016,15.995,46.9]
[1673328745148,82.84061681,16.016,15.994,20.0]
[1673328745371,39.00061681,16.015,15.995,46.9]
[1673328745590,20.0,16.013,15.995,46.9]
[1673328745788,46.86,16.012,15.994,46.91]
[1673328746019,20.0,16.011,15.993,46.91]
[1673328746325,39.00061681,16.011,15.994,20.0]
[1673328746543,39.00061681,16.011,15.995,46.9]
[1673328746745,19.00061681,16.011,15.995,46.9]
[1673328746958,17.0,16.01,15.995,46.9]
[1673328747275,20.0,16.009,15.991,46.92]
[1673328747469,20.0,16.009,15.989,20.0]
[1673328747470,20.0,16.007,15.989,20.0]
[1673328747676,46.87,16.006,15.989,20.0]
[1673328748006,65.87061681,16.006,15.989,20.0]
[1673328748208,20.0,16.005,15.989,20.0]
[1673328748418,46.88,16.004,15.989,20.0]
[1673328749169,46.88,16.004,15.99,20.0]
[1673328751277,20.0,16.003,15.99,20.0]
[1673328752006,46.88,16.004,15.99,20.0]
[1673328753583,20.0,16.003,15.99,20.0]
[1673328754536,46.88,16.004,15.99,20.0]
[1673328755373,20.0,16.003,15.99,20.0]
[1673328757039,312.0,16.058,15.99,200.26]
[1673328757040,46.86,16.009,15.99,200.26]
[1673328757250,20.0,16.013,15.991,20.0]
[1673328757459,66.85,16.013,15.992,46.91]
[1673328757680,66.85,16.013,15.993,20.0]
[1673328757900,66.85,16.013,15.994,46.91]
[1673328758116,20.0,16.012,15.994,46.91]
[1673328758437,46.4,16.01,15.99,92.83]
[1673328758648,20.0,16.008,15.99,26.91]
[1673328758961,20.0,16.006,15.99,26.91]
[1673328759281,46.88,16.005,15.988,85.3792656]
[1673328759488,117.1671,16.005,15.988,85.3792656]
[1673328759680,117.1671,16.005,15.991,20.0]
[1673328759891,117.1671,16.005,15.992,46.91]
[1673328761692,20.0,16.004,15.991,46.92]
[1673328763145,20.0,16.004,15.991,85.3536656]
[1673328766837,20.0,16.004,15.991,38.4336656]
[1673328769890,20.0,16.004,15.988,46.93]
[1673328770101,20.0,16.004,15.989,20.0]
[1673328770102,66.88,16.004,15.989,20.0]
[1673328770308,39.00061681,16.004,15.989,20.0]
[1673328770518,20.0,16.002,15.989,20.0]
[1673328772209,20.0,16.0,15.989,20.0]
[1673328774207,20.0,16.0,15.989,66.92]
[1673328774518,20.0,16.0,15.989,20.0]
[1673328775134,20.0,16.0,15.987,20.0]
[1673328775342,20.0,16.002,15.988,20.0]
[1673328775553,20.0,16.002,15.989,66.92]
[1673328776389,20.0,16.002,15.985,46.93]
[1673328776390,0.69415746,16.0,15.985,46.93]
[1673328776608,66.89,16.0,15.982,46.94]
[1673328776815,37.0,15.999,15.982,46.94]
[1673328777041,20.0,15.998,15.982,46.94]
[1673328777251,20.0,15.996,15.982,46.94]
[1673328781774,20.0,15.996,15.983,20.0]
[1673328781987,20.0,15.996,15.984,46.94]
[1673328782408,115.6868,15.997,15.984,46.94]
[1673328783763,20.0,15.996,15.984,46.94]
[1673328784617,115.6868,15.997,15.984,46.94]
[1673328784808,20.0,16.008,15.99,26.63]
[1673328785019,32.22816912,16.026,16.0,133.24]
[1673328785233,912.73965547,16.024,16.001,69.89004226]
[1673328785448,912.73965547,16.024,16.001,80.24680721]
[1673328785659,66.82,16.023,16.002,10.35676495]
[1673328785973,793.62685547,16.024,16.01,26.54]
[1673328786189,20.0,16.023,16.011,46.86]
[1673328786712,20.0,16.023,16.012,10.35676495]
[1673328786923,793.62685547,16.024,16.012,50.51646286]
[1673328787133,793.62685547,16.024,16.012,51.58561654]
[1673328787352,20.0,16.023,16.013,98.43561654]
[1673328787563,20.0,16.023,16.013,51.58561654]
[1673328787748,20.0,16.023,16.014,11.42591863]
[1673328787958,46.81,16.027,16.014,11.42591863]
[1673328788169,20.0,16.026,16.014,11.42591863]
[1673328791019,20.0,16.027,16.014,11.42591863]
[1673328791238,119.1128,16.028,16.015,46.85]
[1673328791562,119.1128,16.028,16.015,11.42591863]
[1673328791766,46.77,16.041,16.02,26.37]
[1673328791963,46.75,16.049,16.021,46.83]
[1673328792177,20.0,16.046,16.03,26.59]
[1673328792385,20.0,16.044,16.025,20.0]
[1673328792598,20.0,16.044,16.026,66.81]
[1673328792799,20.0,16.044,16.027,20.0]
[1673328793007,20.0,16.044,16.028,66.81]
[1673328793221,20.0,16.044,16.029,20.0]
[1673328793639,20.0,16.044,16.03,31.42591863]
[1673328794059,20.0,16.044,16.031,11.42591863]
[1673328794478,20.0,16.044,16.03,20.0]
[1673328795359,20.0,16.044,16.03,31.42591863]
[1673328795563,20.0,16.044,16.03,20.0]
[1673328795783,20.0,16.046,16.031,20.0]
[1673328795980,20.0,16.046,16.032,46.8]
[1673328796200,20.0,16.046,16.033,20.0]
[1673328796405,20.0,16.046,16.032,46.8]
[1673328796606,20.0,16.046,16.031,46.8]
[1673328797459,20.0,16.046,16.032,20.0]
[1673328799250,66.73,16.055,16.033,46.79]
[1673328799563,66.73,16.055,16.034,31.42591863]
[1673328799772,20.0,16.053,16.034,31.42591863]
[1673328800085,46.74,16.052,16.035,11.42591863]
[1673328800302,46.74,16.052,16.035,58.21591863]
[1673328800611,20.0,16.051,16.036,31.42591863]
[1673328800801,20.0,16.049,16.036,31.42591863]
[1673328801012,20.0,16.049,16.037,11.42591863]
[1673328802400,0.0001392,16.042,16.037,11.42591863]
[1673328802615,0.0001392,16.042,16.038,88.6599437]
[1673328803136,0.0001392,16.042,16.04,20.0]
[1673328803354,0.0001392,16.042,16.041,2.01264671]
[1673328803543,0.0001392,16.042,16.041,13.43856534]
[1673328803867,66.72,16.059,16.042,20.0]
[1673328804061,131.5045,16.059,16.044,20.0]
[1673328804271,131.5045,16.059,16.043,58.18591863]
[1673328804503,46.72,16.058,16.043,11.42591863]
[1673328804707,20.0,16.057,16.043,11.42591863]
[1673328805866,20.0,16.055,16.043,11.42591863]
[1673328806289,20.0,16.055,16.043,31.42591863]
[1673328806499,20.0,16.055,16.044,46.76]
[1673328806723,20.0,16.055,16.044,11.42591863]
[1673328808087,20.0,16.055,16.042,46.77]
[1673328808827,20.0,16.055,16.043,11.42591863]
[1673328810300,20.0,16.055,16.044,20.0]
[1673328810493,20.0,16.055,16.044,66.76]
[1673328810707,20.0,16.055,16.045,11.42591863]
[1673328811856,20.0,16.057,16.045,11.42591863]
[1673328812281,131.5045,16.059,16.045,11.42591863]
[1673328813020,178.2245,16.059,16.045,11.42591863]
[1673328813340,131.5045,16.059,16.045,11.42591863]
[1673328813539,178.2245,16.059,16.045,11.42591863]
[1673328816072,131.5045,16.059,16.045,11.42591863]
[1673328817107,178.2245,16.059,16.045,11.42591863]
[1673328819118,46.72,16.059,16.046,20.0]
[1673328819339,46.71,16.063,16.047,46.75]
[1673328819538,20.0,16.065,16.05,26.37]
[1673328819759,20.0,16.065,16.051,46.74]
[1673328819968,20.0,16.065,16.052,20.0]
[1673328820287,20.0,16.065,16.052,31.42591863]
[1673328820707,5.6071392,16.066,16.053,11.42591863]
[1673328820906,5.6071392,16.066,16.053,58.16591863]
[1673328821115,5.6071392,16.066,16.054,20.0]
[1673328821326,5.6071392,16.066,16.054,31.42591863]
[1673328822386,5.6071392,16.066,16.055,11.42591863]
[1673328822811,5.6071392,16.066,16.055,58.15591863]
[1673328823235,5.6071392,16.066,16.056,11.42591863]
[1673328826383,5.6071392,16.066,16.048,20.0]
[1673328826698,26.47,16.06,16.04,26.5]
[1673328826903,83.72,16.059,16.04,26.5]
[1673328828485,83.72,16.059,16.034,46.79]
[1673328828803,83.72,16.059,16.036,20.0]
[1673328829014,83.72,16.059,16.037,20.0]
[1673328830066,132.86,16.05,16.02,243.6757]
[1673328830384,63.75,16.049,16.031,10.7808192]
[1673328830573,83.75,16.049,16.031,10.7808192]
[1673328830783,20.0,16.048,16.031,10.7808192]
[1673328831012,20.0,16.046,16.031,10.7808192]
[1673328831421,17.0,16.045,16.031,10.7808192]
[1673328831622,17.0,16.045,16.031,57.5808192]
[1673328831834,17.0,16.046,16.032,20.0]
[1673328832157,17.0,16.047,16.032,20.0]
[1673328833415,46.75,16.048,16.033,10.7808192]
[1673328833620,20.0,16.049,16.034,46.79]
[1673328833834,66.74,16.052,16.033,57.5708192]
[1673328834054,46.74,16.052,16.035,10.7808192]
[1673328834269,20.0,16.053,16.036,66.79]
[1673328834583,20.0,16.053,16.037,10.7808192]
[1673328834787,20.0,16.053,16.038,46.78]
[1673328835214,20.0,16.053,16.039,30.7808192]
[1673328835837,20.0,16.053,16.039,20.0]
[1673328836057,20.0,16.053,16.035,46.79]
[1673328836058,20.0,16.053,16.04,10.7808192]
[1673328836454,20.0,16.07,16.04,331.0608192]
[1673328836668,118.6239,16.069,16.05,26.46]
[1673328836876,20.0,16.068,16.051,46.74]
[1673328837198,20.0,16.068,16.052,20.0]
[1673328837424,20.0,16.068,16.053,46.74]
[1673328837738,20.0,16.068,16.053,57.5208192]
[1673328838051,46.68,16.071,16.053,57.5208192]
[1673328838052,46.68,16.071,16.054,10.7808192]
[1673328838263,20.0,16.072,16.056,20.0]
[1673328838582,20.0,16.07,16.057,10.7808192]
[1673328839313,0.0001392,16.066,16.062,0.64351239]
[1673328839500,20.0,16.077,16.064,0.65694659]
[1673328839714,20.0,16.077,16.063,10.7808192]
[1673328840035,132.16,16.07,16.04,132.53]
[1673328840250,132.16,16.07,16.041,20.0]
[1673328840251,20.0,16.068,16.041,20.0]
[1673328840462,46.69,16.067,16.041,40.0]
[1673328840667,46.69,16.067,16.04,132.53]
[1673328840668,20.0,16.065,16.042,46.77]
[1673328840876,83.7,16.064,16.039,46.78]
[1673328841083,20.0,16.059,16.036,20.0]
[1673328841300,20.0,16.059,16.031,46.8]
[1673328841301,63.72,16.058,16.031,46.8]
[1673328841502,20.0,16.057,16.032,20.0]
[1673328841726,63.73,16.056,16.033,46.79]
[1673328841928,20.0,16.055,16.034,20.0]
[1673328842146,46.73,16.054,16.035,46.79]
[1673328842352,17.0,16.053,16.036,20.0]
[1673328842564,37.0,16.053,16.037,46.78]
[1673328842763,56.00061681,16.053,16.035,46.79]
[1673328843188,56.00061681,16.053,16.036,20.0]
[1673328843406,20.0,16.052,16.037,46.78]
[1673328843612,20.0,16.052,16.038,20.0]
[1673328844142,20.0,16.052,16.036,20.0]
[1673328844360,20.0,16.052,16.037,46.78]
[1673328844570,20.0,16.052,16.038,20.0]
[1673328844986,20.0,16.053,16.038,20.0]
[1673328845200,17.0,16.052,16.037,66.78]
[1673328845416,17.0,16.052,16.038,20.0]
[1673328846254,65.73061681,16.054,16.038,20.0]
[1673328846456,19.00061681,16.054,16.038,20.0]
[1673328847311,20.0,16.057,16.041,20.0]
[1673328847513,20.0,16.057,16.042,46.77]
[1673328847843,20.0,16.057,16.043,20.0]
[1673328850367,117.4214,16.058,16.043,20.0]
[1673328850579,20.0,16.056,16.043,20.0]
[1673328850767,20.0,16.056,16.042,46.77]
[1673328852034,20.0,16.056,16.043,20.0]
[1673328852243,17.0,16.057,16.043,20.0]
[1673328852560,20.0,16.057,16.044,46.76]
[1673328852887,119.7182,16.065,16.05,26.46]
[1673328853085,119.7182,16.065,16.051,46.74]
[1673328853712,20.0,16.064,16.051,46.74]
[1673328853920,159.9791,16.067,16.051,46.74]
[1673328854143,17.0,16.066,16.051,46.74]
[1673328854461,37.0,16.066,16.052,20.0]
[1673328857081,159.9791,16.067,16.052,20.0]
[1673328857288,113.2891,16.067,16.052,20.0]
[1673328857507,113.2891,16.067,16.054,20.0]
[1673328859385,20.0,16.066,16.053,46.74]
[1673328859605,113.2891,16.067,16.052,66.74]
[1673328861501,20.0,16.066,16.052,66.74]
[1673328861932,113.2891,16.067,16.052,66.74]
[1673328862440,20.0,16.066,16.052,66.74]
[1673328862652,63.7,16.065,16.048,46.75]
[1673328862852,20.0,16.064,16.049,20.0]
[1673328863071,46.71,16.063,16.049,20.0]
[1673328863286,46.71,16.063,16.05,20.0]
[1673328863497,46.7,16.064,16.05,20.0]
[1673328864243,46.7,16.064,16.05,46.5]
[1673328864460,46.7,16.066,16.05,46.5]
[1673328866236,113.2891,16.067,16.051,46.74]
[1673328866450,17.0,16.066,16.052,20.0]
[1673328866872,37.0,16.066,16.052,20.0]
[1673328867087,83.7,16.066,16.052,20.0]
[1673328867609,46.7,16.066,16.052,20.0]
[1673328868868,20.0,16.065,16.052,20.0]
[1673328869278,20.0,16.065,16.05,46.5]
[1673328871179,17.0,16.064,16.05,46.5]
[1673328872010,20.0,16.063,16.05,26.5]
[1673328872531,17.0,16.062,16.05,26.5]
[1673328872743,20.0,16.061,16.049,20.0]
[1673328873259,20.0,16.063,16.049,20.0]
[1673328873469,17.0,16.062,16.049,20.0]
[1673328873895,20.0,16.063,16.05,20.0]
[1673328874333,20.0,16.063,16.049,40.0]
[1673328874967,17.0,16.062,16.049,40.0]
[1673328875683,17.0,16.062,16.049,20.0]
[1673328876098,63.71,16.062,16.049,20.0]
[1673328876308,20.0,16.061,16.049,20.0]
[1673328876519,17.0,16.06,16.049,20.0]
[1673328877579,20.0,16.063,16.049,20.0]
[1673328877999,20.0,16.063,16.05,20.0]
[1673328879802,66.7,16.064,16.05,20.0]
[1673328879994,17.0,16.063,16.05,66.74]
[1673328880205,17.0,16.063,16.05,20.0]
[1673328881355,20.0,16.064,16.05,20.0]
[1673328882433,20.0,16.064,16.049,66.75]
[1673328882744,83.71,16.063,16.044,10.17187628]
[1673328882943,83.71,16.063,16.042,46.77]
[1673328883269,39.00061681,16.062,16.042,46.77]
[1673328883477,83.71,16.061,16.042,46.77]
[1673328883689,20.0,16.06,16.042,46.77]
[1673328883893,202.3854,16.059,16.042,46.77]
[1673328884103,20.0,16.058,16.042,46.77]
[1673328884301,17.0,16.057,16.042,46.77]
[1673328884516,63.72,16.057,16.039,46.78]
[1673328884731,20.0,16.056,16.039,46.78]
[1673328885052,46.73,16.055,16.04,20.0]
[1673328885266,20.0,16.056,16.041,46.77]
[1673328885709,20.0,16.056,16.04,66.77]
[1673328886435,17.0,16.055,16.04,66.77]
[1673328887473,63.73,16.055,16.04,66.77]
[1673328887688,17.0,16.055,16.04,66.77]
[1673328888332,20.0,16.056,16.04,66.77]
[1673328888772,46.72,16.057,16.04,66.77]
[1673328889073,66.72,16.058,16.04,66.77]
[1673328889383,66.72,16.058,16.04,93.2]
[1673328889792,17.0,16.057,16.04,93.2]
[1673328890124,20.0,16.055,16.04,93.2]
[1673328891904,17.0,16.054,16.04,46.77]
[1673328892097,17.0,16.054,16.039,46.78]
[1673328892312,17.0,16.054,16.04,20.0]
[1673328892852,17.0,16.054,16.04,40.0]
[1673328893171,17.0,16.054,16.041,46.77]
[1673328893368,17.0,16.054,16.04,86.77]
[1673328894743,20.0,16.055,16.041,20.0]
[1673328896092,138.6654,16.059,16.042,46.77]
[1673328896537,20.0,16.058,16.042,46.77]
[1673328897055,20.0,16.058,16.043,20.0]
[1673328897253,20.0,16.058,16.044,46.76]
[1673328898631,20.0,16.058,16.041,20.0]
[1673328898632,20.0,16.058,16.043,20.0]
[1673328898947,20.0,16.058,16.044,46.76]
[1673328902095,20.0,16.058,16.042,46.77]
[1673328902310,17.0,16.057,16.042,46.77]
[1673328902834,20.0,16.056,16.041,46.77]
[1673328903237,17.0,16.055,16.041,46.77]
[1673328903459,20.0,16.058,16.042,20.0]
[1673328903779,20.0,16.058,16.043,46.76]
[1673328904393,17.0,16.057,16.043,46.76]
[1673328904616,20.0,16.056,16.043,46.76]
[1673328905232,20.0,16.058,16.043,46.76]
[1673328905441,138.6654,16.059,16.044,20.0]
[1673328905646,138.6654,16.059,16.045,46.76]
[1673328905647,118.6654,16.059,16.045,46.76]
[1673328905861,118.6654,16.059,16.046,20.0]
[1673328906080,118.6654,16.059,16.047,46.75]
[1673328906289,20.0,16.062,16.048,20.0]
[1673328906504,20.0,16.062,16.047,46.75]
[1673328906726,85.71061681,16.062,16.045,46.76]
[1673328906920,85.71061681,16.062,16.043,46.76]
[1673328907130,85.71061681,16.062,16.044,20.0]
[1673328907463,85.71061681,16.062,16.045,46.76]
[1673328907781,20.0,16.06,16.045,46.76]
[1673328907995,20.0,16.059,16.045,46.76]
[1673328914624,85.71061681,16.062,16.045,46.76]
[1673328914824,20.0,16.062,16.047,20.0]
[1673328915149,20.0,16.062,16.048,66.75]
[1673328915781,20.0,16.062,16.049,20.0]
[1673328915992,20.0,16.062,16.05,20.0]
[1673328916725,20.0,16.062,16.049,20.0]
[1673328917974,20.0,16.062,16.047,20.0]
[1673328918186,20.0,16.062,16.048,46.75]
[1673328918411,20.0,16.062,16.049,20.0]
[1673328919032,20.0,16.062,16.048,20.0]
[1673328919227,20.0,16.062,16.049,46.75]
[1673328919443,20.0,16.062,16.05,20.0]
[1673328920177,20.0,16.062,16.049,66.75]
[1673328920722,20.0,16.062,16.049,20.0]
[1673328931014,132.11,16.06,16.041,30.94707605]
[1673328931221,20.0,16.058,16.038,119.6995]
[1673328931435,63.72,16.057,16.039,46.78]
[1673328931646,63.72,16.057,16.032,51.29374272]
[1673328931647,20.0,16.056,16.034,20.0]
[1673328931967,20.0,16.054,16.036,20.0]
[1673328932176,17.0,16.053,16.037,46.78]
[1673328932387,17.0,16.053,16.038,20.0]
[1673328932388,36.00061681,16.053,16.038,20.0]
[1673328932586,36.00061681,16.053,16.039,20.0]
[1673328932912,20.0,16.052,16.039,20.0]
[1673328933233,17.0,16.051,16.039,20.0]
[1673328934807,20.0,16.052,16.039,20.0]
[1673328934998,20.0,16.052,16.039,46.78]
[1673328935210,20.0,16.05,16.04,20.0]
[1673328935548,17.0,16.049,16.04,20.0]
[1673328935731,17.0,16.049,16.036,20.0]
[1673328935942,20.0,16.05,16.037,46.78]
[1673328936151,20.0,16.05,16.038,20.0]
[1673328936675,20.0,16.05,16.037,66.78]
[1673328937219,20.0,16.05,16.038,20.0]
[1673328938065,17.0,16.049,16.037,66.78]
[1673328938252,17.0,16.049,16.038,20.0]
[1673328938463,233.7039,16.056,16.039,46.78]
[1673328938687,233.7039,16.056,16.041,20.0]
[1673328938899,233.7039,16.056,16.041,66.77]
[1673328940905,17.0,16.054,16.041,20.0]
[1673328941102,17.0,16.054,16.04,76.94187628]
[1673328941309,17.0,16.054,16.041,20.0]
[1673328947957,233.7039,16.056,16.041,20.0]
[1673328949228,119.3867,16.056,16.041,20.0]
[1673328949424,105.84,16.07,16.041,20.0]
[1673328949425,66.71,16.063,16.042,76.94187628]
[1673328949745,118.7635,16.061,16.043,30.17187628]
[1673328949950,118.7635,16.061,16.044,66.76]
[1673328950158,118.7635,16.061,16.044,76.93187628]
[1673328950346,118.7635,16.061,16.046,20.0]
[1673328950561,118.7635,16.061,16.047,66.75]
[1673328950791,118.7635,16.061,16.047,76.92187628]
[1673328951001,118.7635,16.061,16.048,30.17187628]
[1673328951217,118.7635,16.061,16.049,66.75]
[1673328951403,118.7635,16.061,16.049,76.92187628]
[1673328951744,118.7635,16.061,16.05,10.17187628]
[1673328953020,46.7,16.065,16.051,20.0]
[1673328953204,20.0,16.069,16.051,66.74]
[1673328953205,115.9882,16.068,16.051,66.74]
[1673328953423,20.0,16.067,16.052,50.792339]
[1673328953733,20.0,16.067,16.054,20.0]
[1673328954139,20.0,16.067,16.055,10.17187628]
[1673328957551,20.0,16.067,16.055,56.90187628]
[1673328957968,115.9882,16.068,16.056,30.17187628]
[1673328958158,20.0,16.067,16.056,30.17187628]
[1673328958470,20.0,16.067,16.056,10.17187628]
[1673328962985,20.0,16.067,16.053,66.74]
[1673328963202,66.69,16.069,16.055,20.0]
[1673328963408,46.69,16.068,16.053,80.79708941]
[1673328963625,46.69,16.068,16.051,46.74]
[1673328964059,20.0,16.067,16.052,20.0]
[1673328964593,20.0,16.067,16.051,46.74]
[1673328965216,20.0,16.067,16.052,20.0]
[1673328965431,20.0,16.067,16.052,30.17187628]
[1673328965632,20.0,16.067,16.053,56.91187628]
[1673328965959,20.0,16.067,16.054,30.17187628]
[1673328966272,20.0,16.067,16.055,10.17187628]
[1673328967005,20.0,16.067,16.053,46.74]
[1673328967202,20.0,16.065,16.051,10.17187628]
[1673328967411,17.0,16.064,16.051,10.17187628]
[1673328967833,20.0,16.063,16.051,10.17187628]
[1673328970065,137.1063,16.065,16.051,10.17187628]
[1673328972996,46.69,16.067,16.051,10.17187628]
[1673328973213,46.69,16.068,16.052,60.62046272]
[1673328973543,66.69,16.07,16.054,20.0]
[1673328973865,66.69,16.07,16.055,10.17187628]
[1673328979644,46.69,16.068,16.055,10.17187628]
[1673328979830,20.0,16.067,16.055,10.17187628]
[1673328980566,46.69,16.068,16.055,50.08850297]
[1673328980782,46.68,16.072,16.057,20.0]
[1673328981093,20.0,16.071,16.058,70.792339]
[1673328981322,46.68,16.072,16.059,20.0]
[1673328981517,185.488,16.073,16.06,20.0]
[1673328982159,185.488,16.073,16.057,40.0]
[1673328982369,185.488,16.073,16.059,10.17187628]
[1673328982566,185.488,16.073,16.06,20.0]
[1673328982878,20.0,16.078,16.06,46.33]
[1673328982879,46.66,16.078,16.06,46.33]
[1673328983090,20.0,16.087,16.071,2.24438684]
[1673328983294,20.0,16.087,16.071,48.92438684]
[1673328983507,20.0,16.087,16.072,60.02140401]
[1673328983715,118.808,16.088,16.073,20.0]
[1673328983951,46.63,16.089,16.073,76.85187628]
[1673328984133,5.6071392,16.09,16.074,10.17187628]
[1673328984341,66.63,16.089,16.075,46.67]
[1673328984556,66.63,16.089,16.073,10.17187628]
[1673328984782,109.2833,16.088,16.073,10.17187628]
[1673328985103,66.64,16.087,16.071,46.68]
[1673328986146,20.0,16.085,16.071,46.68]
[1673328986351,17.0,16.084,16.071,46.68]
[1673328986564,17.0,16.084,16.07,26.62]
[1673328986790,17.0,16.084,16.068,46.69]
[1673328987099,17.0,16.084,16.06,132.27]
[1673328987100,132.21,16.08,16.07,30.40728631]
[1673328987312,46.66,16.079,16.04,132.22]
[1673328987625,26.2,16.07,16.051,20.0]
[1673328987939,20.0,16.068,16.053,20.0]
[1673328988136,20.0,16.068,16.054,46.73]
[1673328988342,112.0095,16.069,16.054,56.90187628]
[1673328988556,112.0095,16.069,16.055,30.17187628]
[1673328988977,112.0095,16.069,16.056,10.17187628]
[1673328989188,20.0,16.068,16.056,10.17187628]
[1673328992152,20.0,16.068,16.054,46.73]
[1673328992460,20.0,16.068,16.053,10.17187628]
[1673328992677,20.0,16.068,16.054,46.73]
[1673328993190,20.0,16.068,16.053,10.17187628]
[1673328993604,66.69,16.068,16.053,10.17187628]
[1673328997504,66.69,16.068,16.053,56.91187628]
[1673328997719,66.69,16.068,16.053,10.17187628]
[1673329000777,66.69,16.068,16.051,46.74]
[1673329000964,66.69,16.068,16.051,10.17187628]
[1673329002034,66.69,16.068,16.051,30.17187628]
[1673329002248,20.0,16.068,16.053,20.0]
[1673329002437,20.0,16.068,16.054,46.73]
[1673329002649,20.0,16.068,16.054,56.90187628]
[1673329002875,20.0,16.068,16.055,10.17187628]
[1673329003193,32.22816912,16.089,16.06,132.45]
[1673329003501,117.2535,16.078,16.062,20.0]
[1673329003700,20.0,16.082,16.062,20.0]
[1673329003701,20.0,16.08,16.063,46.71]
[1673329004037,46.66,16.079,16.063,46.71]
[1673329004226,20.0,16.078,16.063,46.71]
[1673329004640,20.0,16.078,16.062,20.0]
[1673329004851,20.0,16.078,16.063,46.71]
[1673329005058,20.0,16.078,16.061,46.71]
[1673329005286,26.2,16.07,16.047,118.9234]
[1673329005490,166.5477,16.069,16.047,118.9234]
[1673329005704,20.0,16.068,16.048,20.0]
[1673329005908,63.69,16.067,16.049,46.75]
[1673329006341,20.0,16.066,16.049,46.75]
[1673329006551,46.7,16.065,16.049,46.75]
[1673329006765,20.0,16.064,16.049,46.75]
[1673329007603,20.0,16.064,16.05,20.0]
[1673329007815,163.9332,16.065,16.05,20.0]
[1673329008134,20.0,16.064,16.05,20.0]
[1673329015293,17.0,16.063,16.05,20.0]
[1673329015605,20.0,16.062,16.048,66.75]
[1673329016032,20.0,16.062,16.048,20.0]
[1673329017389,20.0,16.062,16.048,66.75]